bitfinex-derivatives/quotes_SOLF0:USTF0_20260305
["timestamp","ask_amount","ask_price","bid_price","bid_amount"]
[1772683277428,3.70410713,89.968,89.916,10.006]
[1772683278435,3.70410713,89.965,89.916,10.006]
[1772683278738,3.70410713,89.959,89.916,12.93506741]
[1772683280333,2.84534051,89.95,89.906,10.007]
[1772683280528,3.75776361,89.949,89.906,10.007]
[1772683281530,3.75776361,89.947,89.906,10.007]
[1772683281739,3.75776361,89.947,89.903,2.93213438]
[1772683282240,3.75776361,89.947,89.898,10.008]
[1772683282241,3.75776361,89.945,89.898,10.008]
[1772683282438,3.75776361,89.939,89.898,10.008]
[1772683283438,3.75776361,89.938,89.898,10.008]
[1772683284541,3.75776361,89.936,89.891,12.93040915]
[1772683284934,3.75776361,89.936,89.894,10.009]
[1772683285131,3.75776361,89.936,89.895,2.92140915]
[1772683285434,3.75776361,89.949,89.91,2.84534051]
[1772683285634,3.75776361,89.963,89.911,2.92140915]
[1772683286442,10.002,89.955,89.912,10.007]
[1772683286642,10.002,89.955,89.912,12.92334893]
[1772683287842,10.002,89.955,89.913,2.91633495]
[1772683288042,10.002,89.955,89.914,10.007]
[1772683288244,10.001,89.963,89.921,2.92319218]
[1772683288543,3.77716526,89.967,89.94,2.84534051]
[1772683288738,3.77716526,89.988,89.94,2.84534051]
[1772683288934,3.77716526,89.986,89.94,2.84534051]
[1772683289440,3.77716526,89.978,89.94,2.84534051]
[1772683290043,3.77716526,89.978,89.932,10.005]
[1772683290240,10.0,89.969,89.931,2.92319218]
[1772683291538,13.77716526,89.969,89.931,2.92319218]
[1772683291735,3.77716526,89.968,89.931,2.92319218]
[1772683299349,10.001,89.965,89.931,2.92319218]
[1772683299744,13.77816526,89.965,89.931,2.92319218]
[1772683301158,3.77716526,89.962,89.92,5.71895657]
[1772683301558,3.77716526,89.962,89.921,2.87361606]
[1772683302653,3.77716526,89.962,89.873,27.6010181]
[1772683302654,3.77716526,89.944,89.91,2.84534051]
[1772683303258,3.77716526,89.944,89.911,2.86924713]
[1772683305656,3.77716526,89.944,89.91,2.84704893]
[1772683305852,10.32644173,89.982,89.858,20.026]
[1772683305853,3.77716526,89.94,89.9,2.84704893]
[1772683306057,3.77716526,89.939,89.89,2.84704893]
[1772683306460,3.77716526,89.929,89.89,2.84704893]
[1772683307451,3.77716526,89.926,89.884,10.01]
[1772683307657,3.77716526,89.926,89.89,2.84704893]
[1772683312452,3.77716526,89.926,89.891,10.009]
[1772683313062,10.004,89.934,89.894,2.78761322]
[1772683313260,3.71424515,89.928,89.89,2.84704893]
[1772683313861,3.71424515,89.928,89.882,2.78761322]
[1772683314263,3.71424515,89.928,89.88,2.84704893]
[1772683314770,3.71424515,89.919,89.882,10.01]
[1772683316665,3.71424515,89.919,89.882,12.8467022]
[1772683316864,3.71424515,89.919,89.885,10.01]
[1772683317167,3.71424515,89.919,89.87,2.84704893]
[1772683317366,3.71424515,89.919,89.871,2.8367022]
[1772683317766,2.84704893,89.92,89.871,2.8367022]
[1772683317767,3.71424515,89.917,89.878,10.011]
[1772683318165,3.71424515,89.917,89.871,2.8367022]
[1772683318365,3.71424515,89.899,89.843,2.87816816]
[1772683318563,3.71424515,89.889,89.843,2.87816816]
[1772683318969,3.71424515,89.901,89.851,2.87816816]
[1772683319367,3.71424515,89.919,89.87,2.84704893]
[1772683319570,3.71424515,89.919,89.88,2.84704893]
[1772683320369,10.006,89.917,89.88,2.84704893]
[1772683320571,3.71424515,89.919,89.881,2.76072622]
[1772683320772,3.71424515,89.939,89.89,2.84704893]
[1772683321171,10.005,89.933,89.89,12.85604893]
[1772683321372,10.005,89.933,89.9,2.84704893]
[1772683321571,3.71424515,89.932,89.88,2.84704893]
[1772683322171,10.006,89.922,89.88,2.84704893]
[1772683322671,13.72024515,89.922,89.88,2.84704893]
[1772683324570,3.71424515,89.935,89.9,2.84704893]
[1772683325873,3.71424515,89.959,89.9,2.84704893]
[1772683326774,3.71424515,89.959,89.93,2.84704893]
[1772683327476,3.71424515,89.959,89.92,2.84704893]
[1772683327675,3.71424515,89.959,89.911,2.81957473]
[1772683328379,3.71424515,89.959,89.913,10.007]
[1772683328677,3.71424515,89.959,89.93,2.84704893]
[1772683328879,3.71424515,89.975,89.93,2.84704893]
[1772683329080,3.71424515,89.975,89.924,10.005]
[1772683329281,3.71424515,89.969,89.91,2.84704893]
[1772683329578,3.71424515,89.956,89.911,10.007]
[1772683331280,3.71424515,89.956,89.91,2.84704893]
[1772683332480,10.002,89.954,89.91,2.84704893]
[1772683333276,3.71424515,89.956,89.911,10.007]
[1772683333775,3.71424515,89.956,89.92,2.84704893]
[1772683335581,3.71424515,89.956,89.911,10.007]
[1772683337078,3.71424515,89.956,89.911,12.8536485]
[1772683338573,3.71424515,89.956,89.912,2.82738971]
[1772683338781,3.71424515,89.956,89.876,2.82910076]
[1772683338974,3.71424515,89.956,89.91,2.84704893]
[1772683339176,3.63915677,89.949,89.9,2.84704893]
[1772683339980,3.63915677,89.938,89.89,2.84704893]
[1772683340287,3.63915677,89.938,89.891,2.6488475]
[1772683341584,13.64415677,89.93,89.891,2.6488475]
[1772683341882,3.63915677,89.929,89.89,2.84704893]
[1772683343079,10.005,89.93,89.89,2.84704893]
[1772683343080,10.005,89.93,89.891,2.54004433]
[1772683343387,10.004,89.938,89.9,2.84704893]
[1772683343586,13.64315677,89.938,89.9,2.84704893]
[1772683345585,3.63915677,89.938,89.9,2.84704893]
[1772683346488,13.64315677,89.938,89.9,2.84704893]
[1772683347387,3.63915677,89.938,89.9,5.34761942]
[1772683347780,3.65953776,89.951,89.91,2.84704893]
[1772683347979,3.65953776,89.951,89.836,27.6010181]
[1772683347980,3.65953776,89.951,89.92,2.84704893]
[1772683348181,3.65953776,89.978,89.93,2.84704893]
[1772683348379,3.65953776,89.976,89.93,2.84704893]
[1772683348580,10.0,89.971,89.94,2.84704893]
[1772683348787,3.65953776,89.974,89.872,20.023]
[1772683348788,3.65953776,89.974,89.926,2.34651161]
[1772683348985,3.65953776,89.972,89.92,2.84704893]
[1772683349380,3.65953776,89.972,89.911,2.34651161]
[1772683349381,3.65953776,89.957,89.911,2.34651161]
[1772683350391,10.002,89.956,89.911,2.34651161]
[1772683350583,3.65953776,89.949,89.9,2.84704893]
[1772683351390,3.65953776,89.944,89.9,2.84704893]
[1772683351589,3.65953776,89.944,89.901,2.34914451]
[1772683351995,10.002,89.953,89.91,12.85404893]
[1772683352191,3.65953776,89.961,89.92,2.84704893]
[1772683352589,10.002,89.959,89.92,2.84704893]
[1772683352794,3.65953776,89.961,89.93,2.84704893]
[1772683353093,12.45548115,89.978,89.94,2.84704893]
[1772683353293,8.79594339,89.977,89.94,2.84704893]
[1772683353493,10.0,89.974,89.94,2.84704893]
[1772683353693,3.65953776,89.978,89.94,2.84704893]
[1772683353891,10.0,89.977,89.94,2.84704893]
[1772683355197,10.0,89.977,89.93,15.21073896]
[1772683355402,13.65953776,89.977,89.93,15.21073896]
[1772683356404,10.0,89.974,89.93,15.21073896]
[1772683356805,13.65953776,89.974,89.93,15.21073896]
[1772683357001,3.65953776,89.969,89.93,2.84704893]
[1772683358605,10.001,89.965,89.93,2.84704893]
[1772683359104,3.65953776,89.969,89.93,2.84704893]
[1772683359705,3.65953776,89.969,89.862,27.6010181]
[1772683359706,3.65953776,89.959,89.911,2.38419675]
[1772683359904,3.65953776,89.974,89.921,2.38419675]
[1772683360301,10.2905979,89.996,89.921,2.38419675]
[1772683360302,3.65953776,89.965,89.921,2.38419675]
[1772683360806,3.65953776,89.981,89.94,2.84704893]
[1772683361003,2.84704893,89.98,89.931,2.38741263]
[1772683361205,3.65953776,89.979,89.921,2.38741263]
[1772683362008,3.65953776,89.979,89.93,2.84704893]
[1772683362404,10.001,89.964,89.93,2.84704893]
[1772683363510,10.001,89.964,89.921,2.38741263]
[1772683365606,10.001,89.964,89.923,2.4278321]
[1772683365811,3.65953776,89.967,89.923,2.4278321]
[1772683365812,3.65953776,89.967,89.93,2.84704893]
[1772683366511,3.65953776,89.967,89.93,2.84564792]
[1772683367005,10.0,89.971,89.93,5.24308432]
[1772683367209,10.0,89.971,89.94,5.24308432]
[1772683369210,13.81000494,89.979,89.94,5.24308432]
[1772683369407,3.81100494,89.979,89.94,5.24308432]
[1772683370114,3.81100494,89.978,89.94,5.24308432]
[1772683370310,3.81100494,89.978,89.94,2.3974364]
[1772683370617,3.81100494,89.976,89.921,10.006]
[1772683370814,3.81100494,89.976,89.922,2.38191658]
[1772683371307,3.81100494,89.97,89.924,10.005]
[1772683372010,3.81100494,89.967,89.924,10.005]
[1772683376515,3.81100494,89.967,89.925,2.44986537]
[1772683377108,10.0,89.976,89.931,2.44986537]
[1772683377319,10.0,89.976,89.94,2.84564792]
[1772683377512,3.81100494,89.975,89.931,2.44986537]
[1772683377712,10.0,89.971,89.931,2.44986537]
[1772683377915,3.81100494,89.97,89.931,2.44986537]
[1772683379317,3.81100494,89.97,89.92,2.84564792]
[1772683379318,3.81100494,89.966,89.92,2.84564792]
[1772683380422,3.81100494,89.963,89.922,10.006]
[1772683380919,3.81100494,89.963,89.923,2.45088465]
[1772683381320,10.0,89.971,89.94,2.84564792]
[1772683382220,10.0,89.971,89.931,2.45088465]
[1772683382416,10.0,89.971,89.934,2.45387422]
[1772683382922,3.81100494,89.975,89.934,2.45387422]
[1772683383122,3.81100494,89.975,89.937,2.45387422]
[1772683383923,10.0,89.973,89.937,2.45387422]
[1772683386026,12.57120941,89.989,89.941,2.4384631]
[1772683386328,3.81100494,89.987,89.941,2.4384631]
[1772683387225,8.76378278,89.986,89.941,2.4384631]
[1772683387426,9.999,89.985,89.946,2.4384631]
[1772683390528,13.81000494,89.985,89.946,2.4384631]
[1772683391221,3.81100494,89.974,89.933,2.44931445]
[1772683391834,10.001,89.967,89.933,2.44931445]
[1772683392034,3.81100494,89.974,89.933,2.44931445]
[1772683392831,3.81100494,89.974,89.94,2.84564792]
[1772683393127,9.999,89.981,89.95,2.84564792]
[1772683393529,13.81000494,89.981,89.941,2.45946021]
[1772683393929,3.81100494,89.978,89.941,12.46346021]
[1772683394125,3.81100494,89.978,89.941,2.45946021]
[1772683394732,10.0,89.975,89.941,2.45946021]
[1772683395335,3.81100494,89.978,89.941,2.45946021]
[1772683396432,3.81100494,89.978,89.943,10.003]
[1772683398023,3.81100494,89.99,89.953,2.48175926]
[1772683398525,3.81100494,89.983,89.94,5.32740718]
[1772683398725,3.81100494,89.983,89.94,2.48175926]
[1772683400333,3.81100494,89.983,89.94,5.32740718]
[1772683400528,9.999,89.981,89.94,15.33140718]
[1772683401139,3.81100494,89.983,89.941,2.5907372]
[1772683401336,3.85839115,90.017,89.961,2.5907372]
[1772683401635,3.85839115,90.017,89.97,2.84564792]
[1772683401836,3.85839115,90.013,89.97,5.43638512]
[1772683402136,3.85839115,90.013,89.971,2.70034742]
[1772683402430,10.2905979,90.041,89.971,2.70034742]
[1772683402431,9.994,90.024,89.98,2.84564792]
[1772683402636,3.85839115,90.023,89.98,2.84564792]
[1772683404035,3.85839115,90.023,89.982,2.7233875]
[1772683404230,3.85839115,90.023,89.99,2.84564792]
[1772683405135,3.85839115,90.023,89.982,2.7233875]
[1772683405637,3.85839115,90.023,89.984,9.999]
[1772683406334,3.85839115,90.023,89.97,5.5844642]
[1772683406534,3.84117451,90.019,89.97,5.5844642]
[1772683409534,3.84117451,90.019,89.889,177.0]
[1772683409535,3.84117451,90.009,89.96,2.84564792]
[1772683409736,3.84117451,90.009,89.961,2.77321411]
[1772683410442,3.84117451,90.029,89.98,2.84564792]
[1772683411135,9.994,90.025,89.98,2.84564792]
[1772683411336,2.84564792,90.02,89.972,2.77333548]
[1772683411542,3.84117451,90.019,89.961,2.77333548]
[1772683412536,3.84117451,90.014,89.968,10.001]
[1772683412843,3.84117451,90.014,89.97,2.84564792]
[1772683413539,3.84117451,90.014,89.98,2.84564792]
[1772683414438,3.84117451,90.014,89.981,9.999]
[1772683414741,3.84117451,90.014,89.971,2.81632765]
[1772683415733,3.84117451,90.012,89.971,2.81632765]
[1772683417544,3.84117451,90.01,89.963,10.001]
[1772683418333,3.84117451,90.01,89.964,2.81742688]
[1772683418533,13.83717451,90.009,89.964,2.81742688]
[1772683418943,13.83717451,90.009,89.97,2.84564792]
[1772683421247,3.84117451,90.009,89.97,2.84564792]
[1772683421845,10.2905979,90.05,89.97,2.84564792]
[1772683421846,3.84117451,90.007,89.97,2.84564792]
[1772683422044,3.84117451,90.007,89.954,10.002]
[1772683422745,3.84117451,89.995,89.95,2.84564792]
[1772683423044,3.84117451,89.995,89.948,2.76520427]
[1772683424550,3.84117451,89.993,89.949,10.003]
[1772683424745,3.84117451,89.993,89.95,2.84564792]
[1772683426051,13.83917451,89.99,89.95,2.84564792]
[1772683426449,3.84117451,89.989,89.95,2.84564792]
[1772683426849,3.84117451,89.987,89.949,10.003]
[1772683430655,3.84117451,89.987,89.942,10.003]
[1772683430850,2.84477573,89.98,89.942,10.003]
[1772683431051,3.96233536,89.979,89.942,10.003]
[1772683431648,3.96233536,89.979,89.936,2.72036933]
[1772683432150,3.96233536,89.976,89.936,2.72036933]
[1772683432563,3.96233536,89.989,89.941,2.70208333]
[1772683432953,3.96233536,89.979,89.898,2.70208333]
[1772683433252,9.999,89.979,89.931,10.005]
[1772683433455,3.96233536,89.978,89.932,2.70208333]
[1772683434455,3.96233536,89.978,89.941,2.6455826]
[1772683436356,3.96233536,89.978,89.942,10.003]
[1772683438057,3.96233536,89.991,89.94,2.84477573]
[1772683438455,3.96233536,89.991,89.94,5.46719807]
[1772683439453,9.998,89.99,89.944,10.003]
[1772683439757,3.96233536,89.989,89.941,2.62242234]
[1772683440563,8.72494627,90.01,89.961,2.63516559]
[1772683440564,3.96233536,90.002,89.961,2.63516559]
[1772683441468,3.96233536,90.002,89.966,10.001]
[1772683441768,3.96233536,90.014,89.971,2.63516559]
[1772683442063,3.96233536,90.028,89.992,12.70827819]
[1772683442366,3.96233536,90.028,89.906,155.677]
[1772683442367,3.96233536,90.028,89.98,2.84477573]
[1772683442558,9.995,90.019,89.976,10.0]
[1772683442762,3.96233536,90.018,89.965,2.71027819]
[1772683443068,3.96233536,90.009,89.965,2.71027819]
[1772683443868,13.95833536,90.009,89.965,12.71127819]
[1772683445259,13.95833536,90.009,89.97,2.84477573]
[1772683445460,3.96233536,90.009,89.97,2.84477573]
[1772683447669,3.96233536,90.008,89.965,2.71027819]
[1772683448071,3.96233536,90.008,89.953,2.70938794]
[1772683448269,3.96233536,89.999,89.953,2.70938794]
[1772683449170,3.96233536,89.999,89.956,2.70938794]
[1772683449467,3.96233536,90.009,89.961,2.70938794]
[1772683450173,3.96233536,90.009,89.97,5.70958565]
[1772683451372,13.95833536,90.009,89.97,5.70958565]
[1772683452068,3.96233536,90.006,89.96,5.72607248]
[1772683452873,9.997,90.0,89.96,5.72607248]
[1772683454370,3.96233536,89.999,89.96,5.72607248]
[1772683455367,3.96233536,89.999,89.961,10.001]
[1772683455567,3.96233536,89.999,89.962,2.85341664]
[1772683455768,3.96233536,90.012,89.97,5.69819237]
[1772683456170,9.996,90.011,89.971,10.0]
[1772683461279,13.63341073,90.011,89.971,10.0]
[1772683461778,3.63741073,90.01,89.971,10.0]
[1772683461978,13.63341073,90.008,89.97,2.85341664]
[1772683462178,3.63741073,90.007,89.964,10.001]
[1772683462478,3.63741073,90.007,89.964,12.92504818]
[1772683463473,3.63741073,90.005,89.964,12.92504818]
[1772683466276,3.63741073,90.005,89.968,2.91450478]
[1772683466474,9.996,90.013,89.971,2.91450478]
[1772683466672,3.98614396,90.013,89.971,2.91450478]
[1772683467676,3.98614396,90.013,89.96,2.84477573]
[1772683467879,3.98614396,90.009,89.959,2.91427742]
[1772683468477,3.98614396,90.006,89.963,10.001]
[1772683469379,13.98314396,90.002,89.963,10.001]
[1772683469781,13.98314396,90.002,89.964,2.91356292]
[1772683470282,9.996,90.008,89.971,2.91389494]
[1772683473183,2.84477573,90.01,89.96,2.84477573]
[1772683473385,3.98614396,90.009,89.96,2.84477573]
[1772683474388,9.997,89.998,89.96,2.84477573]
[1772683474791,3.98614396,89.997,89.957,2.90993592]
[1772683475687,3.98614396,89.997,89.958,2.90887661]
[1772683475989,9.998,89.995,89.958,2.90887661]
[1772683476985,9.998,89.995,89.96,2.84477573]
[1772683477692,3.98614396,89.997,89.963,2.90849103]
[1772683481594,9.997,90.002,89.963,2.90849103]
[1772683482195,9.997,90.002,89.964,2.92372681]
[1772683482498,13.98214396,90.008,89.97,2.84477573]
[1772683482693,8.77723285,90.007,89.97,2.84477573]
[1772683482898,13.98214396,90.008,89.97,2.84477573]
[1772683483099,12.76337681,90.007,89.97,2.84477573]
[1772683483401,8.77973426,90.006,89.97,2.84477573]
[1772683483599,3.98614396,90.007,89.97,2.84477573]
[1772683483795,8.77992039,90.006,89.97,2.84477573]
[1772683483996,3.98614396,90.007,89.97,2.84477573]
[1772683484298,8.77992039,90.006,89.97,2.84477573]
[1772683484494,8.77992039,90.005,89.97,2.84477573]
[1772683484695,3.98614396,90.007,89.97,2.84477573]
[1772683484890,3.98614396,90.002,89.97,2.84477573]
[1772683485396,3.98614396,90.002,89.964,2.92372681]
[1772683486301,3.98614396,90.002,89.965,10.001]
[1772683486598,3.98614396,90.014,89.971,2.92497122]
[1772683486901,3.98614396,90.012,89.971,2.92497122]
[1772683487101,3.98614396,90.01,89.971,2.92497122]
[1772683487300,8.78113077,90.009,89.971,2.92497122]
[1772683487501,8.78113077,90.008,89.972,10.0]
[1772683487701,8.78113077,90.007,89.972,10.0]
[1772683487907,3.98614396,90.01,89.971,2.92497122]
[1772683488200,3.98614396,90.008,89.971,2.92497122]
[1772683488497,9.995,90.015,89.98,2.84477573]
[1772683488697,8.78467403,90.014,89.98,2.84477573]
[1772683489001,8.78467403,90.013,89.98,2.84477573]
[1772683489202,9.995,90.015,89.98,2.84477573]
[1772683489398,9.996,90.013,89.98,2.84477573]
[1772683489595,3.98614396,90.02,89.981,2.93234165]
[1772683489794,1.93347297,90.08,90.0,2.84477573]
[1772683489795,3.87987765,90.034,90.0,2.84477573]
[1772683489998,3.87987765,90.032,90.0,2.84477573]
[1772683490501,3.87987765,90.027,89.979,9.999]
[1772683490701,3.87987765,90.027,89.99,3.55220521]
[1772683491104,3.87987765,90.027,89.991,2.94391233]
[1772683498905,3.87987765,90.059,90.02,3.55220521]
[1772683499106,10.37801824,90.085,90.02,3.55220521]
[1772683499107,3.87987765,90.071,90.021,2.91636852]
[1772683499306,3.87987765,90.071,90.031,2.91636852]
[1772683499704,3.87987765,90.083,90.031,2.91636852]
[1772683499904,3.87987765,90.083,90.04,3.55220521]
[1772683500109,8.73092918,90.082,90.03,3.55220521]
[1772683500304,7.43208286,90.08,90.031,2.93762256]
[1772683500704,3.87987765,90.079,90.031,2.93762256]
[1772683500907,3.87987765,90.079,90.033,2.93762256]
[1772683501206,3.87987765,90.079,90.04,3.55220521]
[1772683501607,3.87987765,90.079,90.033,2.93762256]
[1772683502408,3.87987765,90.075,90.033,2.93762256]
[1772683504404,10.33109498,90.126,90.033,2.93762256]
[1772683504610,13.75025394,90.138,89.923,11.11]
[1772683504611,3.87987765,90.097,90.05,3.55220521]
[1772683505005,3.87987765,90.097,90.045,2.88599957]
[1772683505511,3.87987765,90.092,90.045,2.88599957]
[1772683505912,9.987,90.093,90.051,2.91040196]
[1772683506214,3.87987765,90.104,90.053,2.91040196]
[1772683506408,3.87987765,90.104,90.061,2.91040196]
[1772683506708,10.33109498,90.148,90.001,19.994]
[1772683506709,3.87987765,90.127,90.07,6.46260717]
[1772683507310,3.87987765,90.127,90.071,2.91040196]
[1772683507510,3.87987765,90.127,90.08,6.46260717]
[1772683507711,3.87987765,90.139,90.09,3.55220521]
[1772683509513,3.87987765,90.136,90.09,3.55220521]
[1772683511415,9.982,90.134,90.09,6.49559573]
[1772683511611,9.982,90.134,90.091,2.94339052]
[1772683512212,13.86187765,90.134,90.091,2.94339052]
[1772683512611,3.87987765,90.159,90.111,2.92905632]
[1772683514410,3.87987765,90.156,90.111,2.92905632]
[1772683515513,3.87987765,90.152,90.11,3.55220521]
[1772683515709,3.87987765,90.152,90.084,2.98253508]
[1772683515909,7.43208286,90.14,90.091,2.95665544]
[1772683516110,3.87987765,90.14,90.1,3.55220521]
[1772683516413,3.87987765,90.153,90.12,3.55220521]
[1772683517412,8.61034211,90.208,90.121,2.95665544]
[1772683517714,125.93075363,90.21,90.16,3.55220521]
[1772683517715,3.87987765,90.204,90.16,3.55220521]
[1772683518210,3.87987765,90.179,90.133,2.81929444]
[1772683519610,9.978,90.169,90.12,3.55220521]
[1772683519823,3.75085646,90.168,90.12,3.55220521]
[1772683520517,3.75085646,90.165,90.118,2.80826426]
[1772683520822,3.75085646,90.165,90.11,3.55220521]
[1772683521016,3.75085646,90.159,90.11,3.55220521]
[1772683521510,3.75085646,90.157,90.11,3.55220521]
[1772683522517,9.98,90.156,90.11,3.55220521]
[1772683523215,9.98,90.152,90.11,3.55220521]
[1772683523614,3.75085646,90.142,90.1,3.55220521]
[1772683524415,3.75085646,90.142,90.101,3.02444711]
[1772683525319,3.75085646,90.142,90.11,3.55220521]
[1772683527822,3.89882927,90.15,90.101,3.02444711]
[1772683528513,3.89882927,90.15,90.104,9.985]
[1772683528721,3.89882927,90.15,90.11,3.55220521]
[1772683531919,3.89882927,90.163,90.12,3.55220521]
[1772683532216,10.33109498,90.236,90.13,3.55220521]
[1772683532525,9.977,90.178,90.13,3.55220521]
[1772683532712,3.55220521,90.17,90.12,3.55220521]
[1772683532917,3.55220521,90.18,90.13,3.55220521]
[1772683533315,9.977,90.179,90.131,9.982]
[1772683533822,9.976,90.187,90.131,9.982]
[1772683534022,3.55220521,90.18,90.131,9.982]
[1772683534224,3.89882927,90.179,90.131,9.982]
[1772683535427,3.89882927,90.179,90.131,13.97255848]
[1772683535824,3.89882927,90.195,90.141,3.99055848]
[1772683536124,3.89882927,90.195,90.07,155.395]
[1772683536125,0.00043307,90.209,90.18,3.55220521]
[1772683536327,0.00043307,90.209,90.2,3.55220521]
[1772683536524,0.00043307,90.209,90.19,3.55220521]
[1772683537027,0.00043307,90.209,90.18,3.55220521]
[1772683540834,0.00043307,90.209,90.18,7.54276369]
[1772683542235,0.00043307,90.209,90.201,3.99055848]
[1772683542734,0.00043307,90.209,90.204,3.99055848]
[1772683543131,0.00043307,90.209,90.205,9.974]
[1772683543329,0.00043307,90.209,90.206,3.99055848]
[1772683543836,0.00043307,90.209,90.208,3.99055848]
[1772683544728,0.00043307,90.209,90.2,3.55220521]
[1772683547840,0.00043307,90.209,90.203,3.99055848]
[1772683548441,0.00043307,90.209,90.205,3.99055848]
[1772683549137,0.00043307,90.209,90.194,9.975]
[1772683549935,0.00043307,90.209,90.194,13.82702787]
[1772683550533,0.00043307,90.209,90.194,3.85202787]
[1772683551840,0.00043307,90.209,90.197,9.975]
[1772683552043,0.00043307,90.209,90.198,3.85202787]
[1772683552433,0.00043307,90.209,90.201,3.85202787]
[1772683552633,0.00043307,90.209,90.208,9.974]
[1772683553437,0.00043307,90.209,90.201,3.85202787]
[1772683553639,0.00043307,90.209,90.187,3.85202787]
[1772683554733,0.00043307,90.209,90.193,9.976]
[1772683555137,0.00043307,90.209,90.187,3.85202787]
[1772683555341,0.00043307,90.209,90.201,9.975]
[1772683555537,0.00043307,90.209,90.201,13.82702787]
[1772683556234,0.00043307,90.209,90.202,3.85202787]
[1772683556440,0.00043307,90.209,90.205,3.85202787]
[1772683557432,0.00043307,90.209,90.206,9.974]
[1772683557631,0.00043307,90.209,90.207,3.85202787]
[1772683558446,3.72980842,90.275,90.215,3.85202787]
[1772683560242,7.57270876,90.3,90.199,3.85202787]
[1772683560243,3.72980842,90.264,90.199,3.85202787]
[1772683561142,3.72980842,90.264,90.19,7.57270876]
[1772683561143,3.72980842,90.254,90.19,7.57270876]
[1772683561346,3.72980842,90.254,90.184,3.85202787]
[1772683561850,3.72980842,90.242,90.184,3.85202787]
[1772683563442,3.72980842,90.242,90.187,3.85202787]
[1772683564350,3.72980842,90.242,90.193,9.976]
[1772683564748,9.969,90.251,90.194,3.85202787]
[1772683565353,13.69880842,90.249,90.197,9.975]
[1772683565653,3.72980842,90.248,90.197,9.975]
[1772683566653,3.72980842,90.245,90.19,7.57270876]
[1772683567355,3.72980842,90.245,90.19,11.42473663]
[1772683568351,3.72980842,90.243,90.192,9.976]
[1772683568754,3.72980842,90.243,90.191,3.85202787]
[1772683569149,3.72980842,90.229,90.178,9.977]
[1772683569545,3.72980842,90.229,90.169,3.85202787]
[1772683569753,3.72980842,90.229,90.185,9.976]
[1772683570650,3.72980842,90.229,90.19,3.53687465]
[1772683571357,3.72980842,90.229,90.185,9.976]
[1772683571557,3.72980842,90.229,90.18,3.53687465]
[1772683571558,3.72980842,90.224,90.18,3.53687465]
[1772683571951,3.72980842,90.224,90.182,9.977]
[1772683572451,3.72980842,90.224,90.19,3.53687465]
[1772683574361,3.72980842,90.224,90.19,13.51287465]
[1772683575453,3.72980842,90.224,90.182,9.977]
[1772683575859,3.72980842,90.224,90.19,3.53687465]
[1772683576858,3.72980842,90.224,90.181,9.977]
[1772683578064,3.72980842,90.224,90.19,3.53687465]
[1772683579264,9.972,90.223,90.19,3.53687465]
[1772683579563,3.71381438,90.222,90.18,3.53687465]
[1772683580363,3.71381438,90.222,90.17,3.53687465]
[1772683581268,3.71381438,90.213,90.171,9.978]
[1772683581662,3.53687465,90.23,90.18,3.53687465]
[1772683581871,3.71381438,90.219,90.17,3.53687465]
[1772683582167,3.71381438,90.209,90.16,3.53687465]
[1772683583768,3.71381438,90.208,90.16,3.53687465]
[1772683585371,3.71381438,90.208,90.162,9.979]
[1772683586172,3.71381438,90.205,90.16,3.53687465]
[1772683586370,3.71381438,90.205,90.154,9.98]
[1772683586568,3.71381438,90.205,90.16,3.53687465]
[1772683587476,3.88393181,90.196,90.16,3.53687465]
[1772683587876,3.88393181,90.196,90.15,3.53687465]
[1772683589373,13.85893181,90.196,90.151,9.98]
[1772683589569,13.85893181,90.196,90.151,3.97319099]
[1772683590474,13.85893181,90.196,90.158,9.979]
[1772683590680,13.85893181,90.196,90.16,3.53687465]
[1772683593779,3.88393181,90.195,90.151,3.97319099]
[1772683593984,3.88393181,90.195,90.16,3.53687465]
[1772683595478,3.88393181,90.195,90.162,9.979]
[1772683599084,3.88393181,90.195,90.151,3.97319099]
[1772683599085,3.88393181,90.195,90.155,9.98]
[1772683599284,3.88393181,90.192,90.134,3.97319099]
[1772683599489,3.88393181,90.192,90.15,3.53687465]
[1772683599690,3.53687465,90.19,90.147,9.981]
[1772683599985,3.88393181,90.189,90.147,9.981]
[1772683601087,9.977,90.182,90.14,3.53687465]
[1772683601279,9.977,90.182,90.15,3.53687465]
[1772683601685,3.88393181,90.188,90.15,3.53687465]
[1772683603488,9.976,90.186,90.15,3.53687465]
[1772683604083,9.978,90.171,90.13,9.983]
[1772683604287,3.88393181,90.171,90.13,17.49306564]
[1772683604583,3.88393181,90.171,90.13,3.53687465]
[1772683604782,3.88393181,90.169,90.13,3.53687465]
[1772683607390,3.88393181,90.165,90.122,9.983]